bitfinex-derivatives/quotes_SOLF0:USTF0_20241212
["timestamp","ask_amount","ask_price","bid_price","bid_amount"]
[1734020551874,2.144,233.08,233.03,208.13348276]
[1734020552277,2.48,233.1,233.03,208.13348276]
[1734020553876,2.144,233.08,233.03,208.13348276]
[1734020554079,2.48,233.1,233.03,208.13348276]
[1734020554273,2.144,233.08,233.03,208.13348276]
[1734020554476,2.48,233.1,233.03,208.13348276]
[1734020555078,10.45140795,233.14,233.03,208.13348276]
[1734020555286,2.48,233.13,233.03,208.13348276]
[1734020555477,2.1439,233.09,233.03,208.13348276]
[1734020556180,4.2848,233.26,233.04,10.45140795]
[1734020556181,2.48,233.16,233.04,10.45140795]
[1734020556585,2.48,233.16,233.03,208.13348276]
[1734020556781,2.1436,233.12,233.03,208.13348276]
[1734020556982,2.48,233.16,233.03,208.13348276]
[1734020557287,2.1436,233.13,233.03,208.13348276]
[1734020557485,2.1436,233.13,233.04,10.45140795]
[1734020557687,2.1433,233.15,233.04,10.45140795]
[1734020557883,2.48,233.16,233.04,10.45140795]
[1734020558583,2.48,233.19,233.07,10.45140795]
[1734020558781,2.1433,233.16,233.11,2.1437]
[1734020559382,2.48,233.19,233.11,2.1437]
[1734020559582,2.48,233.19,233.12,1.9162]
[1734020560389,2.1432,233.17,233.08,2.0066]
[1734020560688,2.48,233.19,233.09,2.1438]
[1734020560890,2.48,233.19,233.09,20.37766478]
[1734020561081,2.48,233.19,233.09,18.23386478]
[1734020561082,2.1438,233.1,233.09,18.23386478]
[1734020561284,2.48,233.11,232.97,3.9202]
[1734020561503,2.48,233.1,232.97,3.9202]
[1734020562082,2.1442,233.06,233.0,2.1447]
[1734020562288,2.1442,233.06,233.0,20.38275092]
[1734020563686,2.1441,233.07,233.02,2.1445]
[1734020565193,2.48,233.1,233.0,18.23805092]
[1734020566791,2.1442,233.06,233.0,20.38275092]
[1734020567792,2.48,233.1,233.0,18.23805092]
[1734020568597,2.1444,233.04,233.0,18.23805092]
[1734020568892,2.1446,233.01,233.0,18.23805092]
[1734020569894,2.48,233.04,233.0,18.23805092]
[1734020570091,5.24505736,233.08,233.0,18.23805092]
[1734020570298,2.48,233.07,233.0,18.23805092]
[1734020570494,10.45140795,233.06,233.0,18.23805092]
[1734020570998,2.48,233.07,233.0,18.23805092]
[1734020572399,2.1444,233.03,233.0,18.23805092]
[1734020573298,2.1445,233.02,233.0,18.23805092]
[1734020573695,2.48,233.01,233.0,18.23805092]
[1734020573892,4.6246,233.01,233.0,18.23805092]
[1734020574901,2.48,233.01,233.0,18.23805092]
[1734020576491,4.6246,233.01,233.0,18.23805092]
[1734020576688,4.6246,233.01,232.88,4.0469]
[1734020576689,2.48,233.01,232.88,4.0469]
[1734020576894,2.1453,232.94,232.88,4.0469]
[1734020577097,4.6253,232.94,232.88,4.0469]
[1734020579296,2.48,232.94,232.89,2.1459]
[1734020579495,2.48,232.94,232.88,4.0469]
[1734020580707,4.6255,232.94,232.88,4.0469]
[1734020581793,1.0,233.0,232.88,4.0469]
[1734020581993,1.0,233.0,232.88,14.49830795]
[1734020582200,2.48,233.04,232.94,1.9577]
[1734020583099,3.8413,233.14,232.94,1.9577]
[1734020583100,2.48,233.06,232.94,1.9577]
[1734020583697,2.48,233.07,232.98,2.1451]
[1734020584001,2.48,233.07,232.99,4.0384]
[1734020584309,5.24505736,233.08,232.99,4.0384]
[1734020584608,2.48,233.08,232.99,4.0384]
[1734020585102,2.48,233.08,233.02,18.24167687]
[1734020586595,2.1443,233.07,233.02,18.24167687]
[1734020586905,2.48,233.08,233.02,18.24167687]
[1734020587397,2.1446,233.03,233.02,18.24167687]
[1734020587803,10.45140795,233.05,232.94,1.9577]
[1734020587999,2.1451,232.98,232.92,2.0291]
[1734020588198,2.48,232.97,232.92,2.0291]
[1734020590401,2.48,232.97,232.88,3.9472]
[1734020591304,2.1453,232.96,232.89,2.1459]
[1734020591499,2.48,232.97,232.88,3.9472]
[1734020591702,10.45140795,232.96,232.88,3.9472]
[1734020592102,2.1454,232.95,232.88,3.9472]
[1734020592501,10.45140795,232.96,232.89,2.1459]
[1734020592707,10.45140795,232.96,232.88,3.9472]
[1734020593608,2.1456,232.93,232.88,3.9472]
[1734020594107,2.1454,232.95,232.88,6.0931]
[1734020594305,7.75278437,232.97,232.88,3.9472]
[1734020594706,5.27278437,232.97,232.9,2.1458]
[1734020594910,7.75278437,232.97,232.9,2.1458]
[1734020595504,7.75278437,232.97,232.88,3.9472]
[1734020595701,7.75278437,232.97,232.88,6.0931]
[1734020595909,2.1454,232.95,232.88,6.0931]
[1734020596209,2.1454,232.95,232.89,2.1459]
[1734020596405,2.1453,232.96,232.89,2.1459]
[1734020596606,7.75278437,232.97,232.89,2.1459]
[1734020597304,7.75278437,232.97,232.88,3.9472]
[1734020597608,10.45140795,232.96,232.88,3.9472]
[1734020598110,2.1456,232.93,232.88,3.9472]
[1734020598513,2.1455,232.94,232.88,3.9472]
[1734020599706,10.45140795,232.96,232.87,12.58832655]
[1734020599906,2.1457,232.92,232.87,12.58832655]
[1734020600105,10.45140795,232.96,232.87,12.58832655]
[1734020601002,7.75278437,232.97,232.87,12.58832655]
[1734020602107,10.45140795,232.96,232.87,12.58832655]
[1734020603108,2.1456,232.91,232.87,12.58832655]
[1734020603309,10.45140795,232.96,232.87,12.58832655]
[1734020603911,2.1456,232.92,232.87,12.58832655]
[1734020604207,10.45140795,232.96,232.87,12.58832655]
[1734020605905,2.1458,232.88,232.87,12.58832655]
[1734020607617,12.59720795,232.88,232.87,12.58832655]
[1734020608308,2.1463,232.84,232.81,91.86581308]
[1734020609812,2.48,232.84,232.81,91.86581308]
[1734020610018,2.1464,232.82,232.81,91.86581308]
[1734020610313,2.48,232.84,232.72,2.0883]
[1734020610514,2.1468,232.78,232.72,2.0883]
[1734020610812,2.48,232.78,232.72,2.0883]
[1734020611017,2.147,232.76,232.72,2.0883]
[1734020612817,2.48,232.78,232.72,2.0883]
[1734020613419,4.6268,232.78,232.72,2.0883]
[1734020613616,2.48,232.78,232.72,2.0883]
[1734020614019,10.45140795,232.81,232.72,2.0883]
[1734020614219,2.48,232.83,232.72,2.0883]
[1734020614620,10.45140795,232.8,232.72,2.0883]
[1734020615717,2.1469,232.77,232.72,2.0883]
[1734020616417,7.65364983,232.83,232.74,2.147]
[1734020616418,2.1464,232.82,232.74,2.147]
[1734020616619,12.93140795,232.85,232.74,18.25935157]
[1734020616822,2.48,232.87,232.74,18.25935157]
[1734020617016,2.48,232.88,232.74,18.25935157]
[1734020617423,10.45140795,232.87,232.74,18.25935157]
[1734020617621,10.45140795,232.87,232.77,2.1467]
[1734020617826,10.45140795,232.87,232.74,18.25935157]
[1734020618824,2.1465,232.81,232.75,2.147]
[1734020619620,2.48,232.82,232.74,18.25935157]
[1734020620424,2.1465,232.8,232.75,2.147]
[1734020622325,0.22774,232.89,232.74,18.25935157]
[1734020622531,0.22774,232.89,232.78,10.45140795]
[1734020622827,0.22774,232.89,232.79,4.2555]
[1734020623633,0.22774,232.89,232.85,2.146]
[1734020623831,0.22774,232.89,232.79,4.2555]
[1734020625235,0.22774,232.89,232.82,2.1464]
[1734020625934,2.146,232.86,232.81,20.39979867]
[1734020626136,0.22774,232.89,232.81,18.25339867]
[1734020626726,2.146,232.86,232.81,18.25339867]
[1734020627735,2.1459,232.87,232.81,18.25339867]
[1734020628035,2.48,232.86,232.81,18.25339867]
[1734020628540,2.1461,232.85,232.81,18.25339867]
[1734020628732,2.1461,232.85,232.79,4.2555]
[1734020628733,2.48,232.86,232.79,4.2555]
[1734020629330,2.1461,232.85,232.79,4.2555]
[1734020629537,10.45140795,232.85,232.72,2.0883]
[1734020629834,10.45140795,232.85,232.73,4.1784]
[1734020630037,2.48,232.86,232.73,4.1784]
[1734020630038,10.45140795,232.82,232.73,4.1784]
[1734020630241,10.45140795,232.79,232.73,4.1784]
[1734020630639,2.1468,232.78,232.73,4.1784]
[1734020631240,10.45140795,232.79,232.73,6.3256]
[1734020631440,2.48,232.81,232.73,4.1784]
[1734020631747,0.22774,232.89,232.76,2.1469]
[1734020631748,2.1464,232.83,232.76,2.1469]
[1734020631941,2.1464,232.83,232.73,4.1784]
[1734020632237,4.6262,232.84,232.76,2.1469]
[1734020632436,2.48,232.84,232.73,4.1784]
[1734020633039,2.1463,232.83,232.78,2.1467]
[1734020633235,2.1463,232.83,232.78,20.40580076]
[1734020633445,2.48,232.84,232.78,18.25910076]
[1734020633645,2.1466,232.8,232.78,18.25910076]
[1734020633839,10.45140795,232.81,232.78,18.25910076]
[1734020634034,2.48,232.84,232.78,18.25910076]
[1734020634840,2.48,232.84,232.8,2.1465]
[1734020637144,2.48,232.84,232.78,20.40580076]
[1734020637445,2.48,232.84,232.73,2.1114]
[1734020638048,4.6263,232.84,232.79,2.1466]
[1734020639144,4.6263,232.84,232.8,2.1466]
[1734020639442,2.48,232.84,232.8,2.1466]
[1734020639945,4.6262,232.84,232.8,2.1466]
[1734020640140,2.48,232.84,232.78,18.26010701]
[1734020640344,10.45140795,232.83,232.78,18.26010701]
[1734020640649,2.1466,232.79,232.78,18.26010701]
[1734020641048,2.1466,232.79,232.73,2.1114]
[1734020641049,10.45140795,232.8,232.73,4.2586]
[1734020641348,10.45140795,232.77,232.66,5.02796233]
[1734020641543,10.45140795,232.77,232.69,4.2012]
[1734020641544,2.48,232.76,232.69,4.2012]
[1734020641746,2.147,232.75,232.69,4.2012]
[1734020641947,2.48,232.76,232.69,2.0537]
[1734020642141,2.48,232.76,232.7,2.1475]
[1734020642348,10.45140795,232.74,232.67,2.0789]
[1734020642743,2.1474,232.71,232.64,1.9808]
[1734020643048,2.48,232.7,232.62,2.0888]
[1734020645152,2.1478,232.67,232.62,2.0888]
[1734020645741,10.45140795,232.68,232.58,2.0494]
[1734020645944,2.1479,232.66,232.58,2.0494]
[1734020646550,2.1479,232.66,232.59,2.1484]
[1734020646754,2.1479,232.66,232.55,4.2348]
[1734020646755,10.45140795,232.68,232.55,4.2348]
[1734020646955,10.45140795,232.65,232.55,4.2348]
[1734020647144,10.45140795,232.62,232.55,4.2348]
[1734020647348,10.45140795,232.62,232.52,2.13]
[1734020647349,2.1484,232.6,232.52,2.13]
[1734020647550,10.45140795,232.62,232.52,2.13]
[1734020648651,2.48,232.64,232.52,12.58140795]
[1734020648843,2.48,232.64,232.6,2.1484]
[1734020649049,2.48,232.69,232.55,31.20528832]
[1734020649557,2.48,232.69,232.59,2.1485]
[1734020649853,2.48,232.69,232.6,4.2028]
[1734020650250,2.1476,232.69,232.64,2.148]
[1734020650453,10.45140795,232.74,232.63,18.27130819]
[1734020650758,2.48,232.72,232.64,2.0967]
[1734020650949,1.0,232.75,232.64,2.0967]
[1734020651150,2.48,232.77,232.64,12.54810795]
[1734020653255,2.1469,232.76,232.7,2.1475]
[1734020653456,2.1469,232.76,232.64,12.54810795]
[1734020653457,10.45140795,232.81,232.69,18.26307429]
[1734020653757,12.93140795,232.81,232.7,4.2953]
[1734020653948,2.48,232.81,232.7,4.2953]
[1734020654652,10.45140795,232.84,232.7,14.74670795]
[1734020654956,2.46,232.83,232.7,14.74670795]
[1734020655855,2.1464,232.82,232.77,2.1468]
[1734020656057,2.1464,232.82,232.7,14.74670795]
[1734020656447,2.46,232.83,232.75,2.1469]
[1734020656648,2.46,232.83,232.75,20.4050439]
[1734020657857,2.1466,232.8,232.75,20.4050439]
[1734020659159,2.46,232.83,232.75,18.2581439]
[1734020659356,2.1467,232.79,232.75,18.2581439]
[1734020659552,10.45140795,232.81,232.75,18.2581439]
[1734020660256,2.46,232.83,232.75,18.2581439]
[1734020660959,2.46,232.83,232.78,2.1467]
[1734020661158,10.45140795,232.85,232.75,18.2581439]
[1734020661354,2.46,232.84,232.76,2.1509]
[1734020662152,2.46,232.84,232.79,2.1466]
[1734020662350,2.46,232.84,232.76,2.1509]
[1734020662660,2.46,232.84,232.75,18.2581439]
[1734020663057,2.46,232.83,232.75,18.2581439]
[1734020663253,2.1465,232.82,232.75,20.4051439]
[1734020663461,10.45140795,232.81,232.75,18.2581439]
[1734020664758,2.1468,232.78,232.75,18.2581439]
[1734020665151,10.45140795,232.81,232.75,18.2581439]
[1734020665356,2.1467,232.79,232.75,18.2581439]
[1734020666356,10.45140795,232.78,232.69,18.26066316]
[1734020666557,10.45140795,232.74,232.69,18.26066316]
[1734020666758,2.46,232.81,232.69,18.26066316]
[1734020667457,2.1466,232.8,232.73,2.1472]
[1734020667664,2.1466,232.8,232.69,18.26066316]
[1734020668066,2.1466,232.8,232.74,2.1471]
[1734020668863,4.6065,232.81,232.7,4.1304]
[1734020669165,2.46,232.81,232.7,4.1304]
[1734020669563,2.46,232.81,232.7,14.58180795]
[1734020670061,2.46,232.85,232.81,2.1465]
[1734020670263,2.46,232.85,232.8,18.2589401]
[1734020670463,2.46,232.85,232.8,20.4054401]
[1734020670655,2.46,232.85,232.8,18.2589401]
[1734020671555,12.91140795,232.85,232.8,18.2589401]
[1734020672466,2.46,232.85,232.8,18.2589401]
[1734020672861,1.8921,232.99,232.83,2.1463]
[1734020672862,2.46,232.86,232.83,2.1463]
[1734020673058,2.1458,232.89,232.83,2.1463]
[1734020673263,2.46,232.89,232.8,18.2589401]
[1734020673567,2.46,232.89,232.81,4.1464]
[1734020673764,15.54104279,232.91,232.81,4.1464]
[1734020673960,2.46,232.9,232.81,4.1464]
[1734020675566,2.1459,232.88,232.82,2.1464]
[1734020676064,4.6057,232.9,232.83,2.1462]
[1734020676763,4.6057,232.9,232.84,2.1462]
[1734020676960,2.46,232.9,232.81,4.1464]
[1734020677364,2.1454,232.93,232.86,2.1459]
[1734020677558,2.1456,232.91,232.86,18.25426427]
[1734020677957,2.46,232.92,232.86,18.25426427]
[1734020678161,44.66,233.1,232.86,18.25426427]
[1734020678365,10.45140795,233.03,232.87,2.1095]
[1734020678562,46.5505,233.1,232.91,18.24807733]
[1734020678764,2.1449,232.99,232.92,4.113]
[1734020679160,2.46,233.01,232.92,4.113]
[1734020679364,2.145,232.97,232.92,4.113]
[1734020680069,2.1451,232.96,232.92,4.113]
[1734020680469,12.91140795,233.01,232.92,4.113]
[1734020680868,2.145,232.97,232.92,4.113]
[1734020681167,5.11740187,232.99,232.92,4.113]
[1734020681565,7.57740187,232.99,232.92,4.113]
[1734020681775,2.1449,232.98,232.92,4.113]
[1734020682068,7.57740187,232.99,232.92,4.113]
[1734020682270,2.1451,232.97,232.92,4.113]
[1734020682771,2.1451,232.96,232.92,4.113]
[1734020683773,2.1453,232.94,232.91,18.24807733]
[1734020684567,2.1452,232.95,232.91,18.24807733]
[1734020685972,10.45140795,232.98,232.91,18.24807733]
[1734020686162,7.57740187,232.99,232.91,18.24807733]
[1734020686163,10.45140795,232.95,232.91,18.24807733]
[1734020686367,10.45140795,232.95,232.87,2.1095]
[1734020686566,10.45140795,232.92,232.86,22.30116427]
[1734020686763,10.45140795,232.92,232.86,20.29646427]
[1734020686764,2.46,232.91,232.86,20.29646427]
[1734020687467,2.46,232.91,232.88,2.1458]
[1734020687670,2.46,232.91,232.86,20.29646427]
[1734020688074,2.1452,232.95,232.88,2.1457]
[1734020688570,2.46,232.96,232.86,20.29646427]
[1734020689074,2.46,232.98,232.88,10.45140795]
[1734020689271,4.6049,232.98,232.92,2.1454]
[1734020690071,4.6049,232.98,232.92,4.2436]
[1734020690273,4.6049,232.98,232.93,2.1453]
[1734020691072,10.45140795,233.04,232.95,2.1451]
[1734020691375,2.46,233.03,232.93,2.154]
[1734020691572,2.1445,233.03,232.93,2.154]
[1734020692176,2.1445,233.02,232.96,2.1451]
[1734020692876,2.1446,233.01,232.96,2.1451]
[1734020693069,2.46,233.04,232.93,2.154]
[1734020693266,12.91140795,233.04,232.93,2.154]
[1734020693874,12.91140795,233.04,232.94,2.1453]
[1734020694069,2.1447,233.0,232.94,2.1453]
[1734020694665,2.1447,233.01,232.95,2.1451]
[1734020697172,12.91140795,233.04,232.93,2.154]
[1734020698675,12.91140795,233.04,232.94,2.1453]
[1734020698872,12.91140795,233.04,232.93,2.154]
[1734020699266,2.46,233.03,232.93,2.154]
[1734020700174,10.45140795,233.01,232.93,2.154]
[1734020700380,2.1449,232.99,232.93,2.154]
[1734020700670,2.46,233.03,232.93,2.154]
[1734020700878,2.46,233.03,232.93,4.2993]
[1734020700879,2.1448,232.99,232.93,4.2993]
[1734020701178,2.1448,232.99,232.93,2.154]
[1734020702476,2.1448,232.99,232.93,4.2993]
[1734020703368,148.5205167,233.18,232.93,4.2993]
[1734020703369,10.45140795,233.07,232.93,12.60540795]
[1734020703571,2.46,233.06,232.93,12.60540795]
[1734020703776,55.11140795,233.1,232.93,12.60540795]
[1734020704172,2.46,233.09,232.96,10.45140795]
[1734020704377,2.46,233.09,232.97,2.102]
[1734020704978,2.46,233.09,232.99,28.69053727]
[1734020705176,10.45140795,233.13,232.99,28.69053727]
[1734020705378,2.46,233.14,233.02,10.45140795]
[1734020705581,2.46,233.18,233.05,10.45140795]
[1734020705877,2.46,233.18,233.03,4.102]
[1734020705878,2.46,233.21,233.08,10.45140795]
[1734020706177,2.46,233.21,233.09,2.102]
[1734020706382,2.1431,233.18,233.12,2.1436]
[1734020706684,2.1431,233.18,233.12,20.376114]
[1734020706976,2.46,233.21,233.12,20.376114]
[1734020707383,2.46,233.21,233.13,2.111]
[1734020707683,2.143,233.19,233.13,2.111]
[1734020708186,2.1429,233.2,233.13,4.2545]
[1734020708585,10.45140795,233.26,233.14,2.1352]
[1734020708786,2.1428,233.21,233.14,4.2786]
[1734020709288,10.45140795,233.23,233.14,2.1352]
[1734020709490,2.1429,233.2,233.14,2.1352]
[1734020709694,5.10683406,233.24,233.14,2.1352]
[1734020709894,2.46,233.23,233.14,2.1352]
[1734020710684,2.46,233.23,233.16,2.1432]
[1734020710685,4.6026,233.23,233.16,2.1432]
[1734020711285,2.1426,233.23,233.16,2.1432]
[1734020711490,2.1427,233.22,233.16,2.1432]
[1734020711992,2.1427,233.22,233.14,2.1352]
[1734020712189,2.1427,233.22,233.15,2.1433]
[1734020713399,5.10683406,233.24,233.17,2.1431]
[1734020713400,2.1426,233.24,233.17,2.1431]
[1734020714194,2.46,233.25,233.17,2.1431]
[1734020714389,2.1426,233.23,233.17,2.1431]
[1734020714895,2.1425,233.24,233.17,2.1431]
[1734020715688,2.1427,233.22,233.16,2.1432]
[1734020715889,2.1427,233.22,233.14,2.1352]
[1734020717199,2.46,233.25,233.16,18.2262259]
[1734020719098,10.45140795,233.24,233.16,18.2262259]
[1734020719300,2.46,233.25,233.16,18.2262259]
[1734020719508,2.46,233.25,233.16,28.67763385]
[1734020720496,2.46,233.27,233.16,28.67763385]
[1734020720695,2.1424,233.25,233.19,2.1429]
[1734020721394,2.1424,233.25,233.16,18.2262259]
[1734020721599,2.46,233.27,233.18,2.143]
[1734020721897,2.46,233.27,233.16,18.2262259]
[1734020722690,2.46,233.27,233.19,2.1429]
[1734020722691,2.1424,233.25,233.19,2.1429]
[1734020724395,2.1425,233.24,233.19,2.1429]
[1734020724808,2.1425,233.24,233.17,2.1431]
[1734020725303,2.1425,233.24,233.16,18.2262259]
[1734020725304,2.1424,233.26,233.2,2.1428]
[1734020725500,2.46,233.27,233.16,18.2262259]
[1734020725901,2.1423,233.27,233.16,28.67763385]
[1734020726202,2.46,233.32,233.19,10.45140795]
[1734020726405,2.46,233.32,233.2,2.0228]
[1734020726803,2.142,233.3,233.2,2.0228]
[1734020727204,2.142,233.29,233.24,2.1425]
[1734020727706,2.46,233.32,233.2,2.0228]
[1734020728405,2.1421,233.28,233.23,2.1425]
[1734020728708,2.46,233.32,233.23,2.1425]
[1734020728898,2.46,233.32,233.22,18.22413924]
[1734020729208,2.142,233.29,233.22,18.22413924]
[1734020729412,2.46,233.32,233.22,18.22413924]
[1734020729905,2.1423,233.26,233.22,20.36683924]
[1734020730301,2.46,233.32,233.22,18.22413924]
[1734020730502,2.46,233.32,233.23,2.1425]
[1734020730705,2.46,233.32,233.22,18.22413924]
[1734020730905,2.1423,233.27,233.22,18.22413924]
[1734020731911,2.1423,233.27,233.22,20.36673924]
[1734020732213,2.46,233.32,233.22,20.36673924]
[1734020732511,2.46,233.31,233.22,20.36673924]
[1734020734704,2.1422,233.27,233.22,20.36683924]
[1734020736508,2.46,233.31,233.22,20.36683924]
[1734020736509,2.1421,233.28,233.22,20.36683924]
[1734020738111,2.142,233.29,233.24,2.1425]
[1734020739510,6.67329031,233.3,233.25,2.1423]
[1734020739807,9.13329031,233.38,233.29,6.67329031]
[1734020740112,8.81459031,233.38,233.32,2.1417]
[1734020740312,6.67329031,233.38,233.32,2.1417]
[1734020740705,3.7019,233.48,233.35,6.67329031]
[1734020740909,6.67329031,233.43,233.35,6.67329031]
[1734020741209,6.67329031,233.41,233.32,4.1671]
[1734020741402,6.67329031,233.39,233.32,10.84039031]
[1734020741808,6.67329031,233.39,233.32,8.69869031]
[1734020742004,6.67329031,233.39,233.32,2.0254]
[1734020742806,6.67329031,233.39,233.32,4.1671]
[1734020742807,2.1413,233.38,233.32,4.1671]
[1734020743112,2.46,233.41,233.33,6.67329031]
[1734020743308,2.46,233.41,233.33,2.0236]
[1734020744206,4.601,233.41,233.35,2.1414]
[1734020744408,5.10774929,233.44,233.35,2.1414]
[1734020744608,7.56774929,233.44,233.33,2.0236]
[1734020745012,7.56774929,233.44,233.33,4.1652]
[1734020745306,7.56774929,233.44,233.33,2.0236]
[1734020746202,5.10774929,233.44,233.33,2.0236]
[1734020746402,2.1409,233.41,233.35,2.1414]
[1734020746809,4.6007,233.44,233.38,2.1411]
[1734020747009,2.1407,233.44,233.38,2.1411]
[1734020747406,2.46,233.46,233.36,2.1413]
[1734020747407,2.1408,233.42,233.36,2.1413]
[1734020748213,2.1407,233.44,233.37,2.1413]
[1734020748513,11.99902973,233.45,233.33,4.1052]
[1734020748914,2.1409,233.42,233.35,2.1414]
[1734020749116,11.99902973,233.45,233.34,18.21213032]
[1734020749511,2.1407,233.43,233.34,18.21213032]
[1734020750316,2.1407,233.43,233.37,2.1413]
[1734020750914,11.99902973,233.45,233.34,18.21213032]
[1734020752016,10.41566465,233.43,233.34,18.21213032]
[1734020752218,11.99902973,233.42,233.34,18.21213032]
[1734020752714,2.1414,233.37,233.34,18.21213032]
[1734020753416,2.1415,233.35,233.34,18.21213032]
[1734020757123,2.1419,233.3,233.25,4.2603]
[1734020757325,2.46,233.34,233.25,4.2603]
[1734020757826,2.46,233.34,233.25,6.4026]
[1734020759224,2.46,233.34,233.25,4.2603]
[1734020759425,12.87566465,233.34,233.25,4.2603]
[1734020759928,2.142,233.29,233.25,2.2088]
[1734020760329,12.87566465,233.34,233.25,2.2088]
[1734020760524,2.142,233.3,233.25,2.2088]
[1734020760719,12.87566465,233.34,233.25,2.2088]
[1734020761127,2.142,233.29,233.25,2.2088]
[1734020761931,12.87566465,233.34,233.25,2.2088]
[1734020761932,2.46,233.34,233.25,2.2088]
[1734020762429,2.1417,233.33,233.25,2.2088]
[1734020763627,2.1417,233.33,233.27,2.1422]
[1734020764026,4.6015,233.35,233.25,2.2088]
[1734020764225,2.1415,233.35,233.28,210.27558276]
[1734020764826,2.46,233.36,233.28,210.27558276]
[1734020765031,2.46,233.36,233.28,208.13348276]
[1734020765424,2.1418,233.31,233.28,208.13348276]
[1734020766228,2.142,233.29,233.28,208.13348276]
[1734020767133,2.1419,233.31,233.28,208.13348276]
[1734020767527,10.41566465,233.34,233.28,208.13348276]
[1734020767725,2.142,233.29,233.28,208.13348276]
[1734020767934,4.602,233.29,233.28,208.13348276]
[1734020768430,16.66627767,233.29,233.28,208.13348276]
[1734020768626,4.602,233.29,233.28,208.13348276]
[1734020769434,2.46,233.29,233.28,208.13348276]
[1734020770024,4.602,233.29,233.28,208.13348276]
[1734020770431,16.66813818,233.29,233.28,208.13348276]
[1734020770834,17.35922219,233.29,233.28,208.13348276]
[1734020771129,17.3592198,233.29,233.28,208.13348276]
[1734020772031,18.05031989,233.29,233.28,208.13348276]
[1734020772733,15.90831989,233.29,233.15,4.188]
[1734020772934,10.41566465,233.25,233.15,4.188]
[1734020773134,12.06613818,233.24,233.15,4.188]
[1734020773333,2.44,233.23,233.15,4.188]
[1734020773736,2.1428,233.21,233.15,4.188]
[1734020773929,2.44,233.23,233.15,4.188]
[1734020774836,2.1429,233.2,233.15,4.188]
[1734020775032,2.44,233.23,233.15,4.188]
[1734020775433,2.44,233.24,233.15,4.188]
[1734020775636,2.44,233.24,233.17,2.1431]
[1734020775939,2.44,233.24,233.16,18.22686774]
[1734020776334,2.143,233.19,233.16,18.22686774]
[1734020776533,2.44,233.24,233.16,18.22686774]
[1734020777233,2.1427,233.23,233.16,20.36996774]
[1734020778240,2.44,233.24,233.16,18.22686774]
[1734020779945,2.1431,233.17,233.16,18.22686774]
[1734020782035,2.44,233.18,233.1,2.27524]
[1734020783446,2.1435,233.14,233.1,2.27524]
[1734020783744,2.44,233.18,233.1,2.27524]
[1734020784345,2.1434,233.14,233.1,2.27524]
[1734020784539,2.44,233.18,233.1,2.27524]
[1734020784946,2.1437,233.11,233.1,2.27524]
[1734020785850,2.44,233.12,232.84,5.915122]
[1734020786045,10.41566465,233.04,232.91,5.1053523]
[1734020786348,2.44,233.03,232.9,18.24759404]
[1734020786544,2.1449,232.98,232.9,20.39319404]
[1734020786744,2.44,232.97,232.9,18.24759404]
[1734020786950,2.44,232.96,232.9,18.24759404]
[1734020787341,12.85566465,232.96,232.9,18.24759404]
[1734020787540,2.44,232.95,232.9,18.24759404]
[1734020788246,2.1455,232.92,232.9,18.24759404]
[1734020788447,2.44,232.91,232.9,18.24759404]
[1734020789147,2.1459,232.87,232.85,133.20542896]
[1734020789348,2.1459,232.87,232.81,4.3156]
[1734020789349,10.41566465,232.89,232.81,4.3156]
[1734020789549,10.41566465,232.86,232.75,2.0321]
[1734020789746,2.44,232.85,232.76,4.2342]
[1734020790053,10.41566465,232.89,232.76,4.2342]
[1734020790054,2.44,232.84,232.76,4.2342]
[1734020790448,2.146,232.87,232.78,2.1467]